Workbook

Sheet Bắt đầu
B1: GIỚI THIỆU VỀ MẪU NÀY
B2: Sử dụng sổ làm việc Ngân sách sự kiện này để theo dõi Chi phí phát sinh và Thu nhập có được từ sự kiện.
B3: Điền Tên sự kiện và nhập chi tiết vào các bảng trong trang tính Chi phí và trang tính Thu nhập.
B4: Tổng chi phí và Tổng thu nhập được tính toán tự động.
B5: Tóm tắt và Biểu đồ lãi & lỗ được cập nhật tự động trong trang tính Tóm tắt lãi-lỗ.
B6: Lưu ý:
B7: Hướng dẫn bổ sung được cung cấp ở cột A trong từng trang tính. Văn bản này đã được ẩn một cách chủ ý. Để xóa văn bản, chọn cột A, rồi chọn XÓA.
B8: Để tìm hiểu thêm về các bảng, hãy nhấn SHIFT, rồi F10 trong một bảng, chọn tùy chọn BẢNG, rồi chọn VĂN BẢN THAY THẾ

Sheet Chi phí
A1: Nhập Chi phí ước tính và thực tế cho từng danh mục vào bảng tương ứng trong trang tính này và nhập Tên sự kiện vào ô D1 để tùy chỉnh tiêu đề của trang tính này và các trang tính khác. Tiêu đề phụ của trang tính này nằm trong ô H1. Hướng dẫn hữu ích về cách sử dụng trang tính này nằm ở các ô trong cột này. Hướng dẫn tiếp theo nằm trong ô A3. | B1: Ngân sách sự kiện cho | D1: Tên sự kiện | H1: CHI PHÍ
A3: Nhãn Tổng chi phí nằm trong ô bên phải, nhãn Ước tính nằm trong ô G3 còn nhãn Thực tế nằm trong ô H3. | B3: TỔNG CHI PHÍ | G3: Ước tính | H3: Thực tế
A4: Tổng chi phí ước tính nằm trong ô G4 và Tổng chi phí thực tế nằm trong ô H4 được tính toán tự động. Hướng dẫn tiếp theo nằm trong ô A6. | G4: =SUM(C11,C19,C25,C32,G11,G19,G24) -> 882.00 ₫ | H4: =SUM(D11,D19,D25,D32,H11,H19,H24) -> 302.00 ₫
A6: Nhập Chi phí hiện trường vào bảng bắt đầu từ ô bên phải và Chi phí đồ ăn uống nhẹ vào bảng bắt đầu từ ô F6. Hướng dẫn tiếp theo nằm trong ô A13. | B6: Hiện trường | C6: Ước tính | D6: Thực tế | F6: Đồ ăn uống nhẹ | G6: Ước tính | H6: Thực tế
B7: Phí phòng và hội trường | C7: 500.00 ₫ | F7: Đồ ăn
B8: Nhân viên hiện trường | F8: Đồ uống | G8: 20.00 ₫
B9: Thiết bị | F9: Khăn trải bàn | H9: 20.00 ₫
B10: Bàn và ghế | F10: Nhân viên và tiền thưởng
B11: Tổng | C11: =SUBTOTAL(109,Chi_phí_hiện_trường[Ước tính]) -> 500.00 ₫ | D11: =SUBTOTAL(103,Chi_phí_hiện_trường[Thực tế]) -> 0.00 ₫ | F11: Tổng | G11: =SUBTOTAL(109,Chi_phí_đồ_ăn_uống_nhẹ[Ước tính]) -> 20.00 ₫ | H11: =SUBTOTAL(103,Chi_phí_đồ_ăn_uống_nhẹ[Thực tế]) -> 1.00 ₫
A13: Nhập Chi phí trang trí vào bảng bắt đầu từ ô bên phải và Chi phí chương trình vào bảng bắt đầu từ ô F13. Hướng dẫn tiếp theo nằm trong ô A21. | B13: Đồ trang trí | C13: Ước tính | D13: Thực tế | F13: Chương trình | G13: Ước tính | H13: Thực tế
B14: Hoa | C14: 200.00 ₫ | D14: 300.00 ₫ | F14: Người biểu diễn
B15: Nến | F15: Diễn giả | G15: 30.00 ₫
B16: Đèn | F16: Đi lại
B17: Bóng bay | F17: Khách sạn
B18: Vật dụng bằng giấy | F18: Khác
B19: Tổng | C19: =SUBTOTAL(109,Chi_phí_trang_trí[Ước tính]) -> 200.00 ₫ | D19: =SUBTOTAL(109,Chi_phí_trang_trí[Thực tế]) -> 300.00 ₫ | F19: Tổng | G19: =SUBTOTAL(109,Chi_phí_chương_trình[Ước tính]) -> 30.00 ₫ | H19: =SUBTOTAL(103,Chi_phí_chương_trình[Thực tế]) -> 0.00 ₫
A21: Nhập Chi phí quảng bá vào bảng bắt đầu từ ô bên phải và Chi phí giải thưởng vào bảng bắt đầu từ ô F21. Hướng dẫn tiếp theo nằm trong ô A27 | B21: Quảng bá | C21: Ước tính | D21: Thực tế | F21: Giải thưởng | G21: Ước tính | H21: Thực tế
B22: Tác phẩm đồ họa | F22: Dải băng/Kỷ niệm chương/Cúp
B23: Sao chép/in | C23: 20.00 ₫ | F23: Quà tặng | G23: 100.00 ₫
B24: Bưu phí | F24: Tổng | G24: =SUBTOTAL(109,Chi_phí_giải_thưởng[Ước tính]) -> 100.00 ₫ | H24: =SUBTOTAL(103,Chi_phí_giải_thưởng[Thực tế]) -> 0.00 ₫
B25: Tổng | C25: =SUBTOTAL(109,Chi_phí_dịch_vụ_quảng_bá[Ước tính]) -> 20.00 ₫ | D25: =SUBTOTAL(103,Chi_phí_dịch_vụ_quảng_bá[Thực tế]) -> 0.00 ₫
A27: Nhập Chi phí khác vào bảng bắt đầu từ ô bên phải. | B27: Khác | C27: Ước tính | D27: Thực tế
B28: Điện thoại | D28: 13.00 ₫
B29: Đi lại | C29: 12.00 ₫
B30: Văn phòng phẩm
B31: Dịch vụ fax
B32: Tổng | C32: =SUBTOTAL(109,Chi_phí_tổng_hợp[Ước tính]) -> 12.00 ₫ | D32: =SUBTOTAL(103,Chi_phí_tổng_hợp[Thực tế]) -> 1.00 ₫

Sheet Thu nhập
A1: Nhập Thu nhập ước tính và thực tế từ từng danh mục vào các bảng tương ứng trong trang tính này. Tiêu đề của trang tính này được cập nhật tự động trong các ô bên phải. Tiêu đề phụ nằm trong ô G1. Hướng dẫn hữu ích về cách sử dụng trang tính này nằm ở các ô trong cột này. Hướng dẫn tiếp theo nằm trong ô A3. | B1: ='Chi phí'!B1 -> Ngân sách sự kiện cho | D1: ='Chi phí'!D1 -> Tên sự kiện | G1: THU NHẬP
A3: Nhãn Tổng thu nhập nằm trong ô bên phải, nhãn Ước tính nằm trong ô F3 còn nhãn Thực tế nằm trong ô G3. | B3: TỔNG THU NHẬP | F3: Ước tính | G3: Thực tế
A4: Tổng thu nhập ước tính được tính toán tự động trong ô F4 còn Tổng thu nhập thực tế được tính toán tự động trong ô G4. | F4: =SUM(Phí_vào_cửa[[#Totals],[Thu nhập ước tính]],Quảng_cáo_trong_chương_trình[[#Totals],[Thu nhập ước tính]],Người_tham_gia_triển_lãm_và_nhà_cung_cấp[[#Totals],[Thu nhập ước tính]],Hàng_bán_ra[[#Totals],[Thu nhập ước tính]]) -> 1,936.00 ₫ | G4: =SUM(Phí_vào_cửa[[#Totals],[Thu nhập thực tế]],Quảng_cáo_trong_chương_trình[[#Totals],[Thu nhập thực tế]],Người_tham_gia_triển_lãm_và_nhà_cung_cấp[[#Totals],[Thu nhập thực tế]],Hàng_bán_ra[[#Totals],[Thu nhập thực tế]]) -> 1,831.00 ₫
A5: Nhãn Phí vào cửa nằm trong ô bên phải. | B5: PHÍ VÀO CỬA
A6: Nhập Số lượt vào cửa ước tính và thực tế cùng với giá vé vào bảng bắt đầu từ ô bên phải. Thu nhập ước tính và thực tế từ Phí vào cửa được tính toán tự động. Hướng dẫn tiếp theo nằm trong ô A11. | B6: Số ước tính | C6: Số thực tế | D6: Loại | E6: Giá | F6: Thu nhập ước tính | G6: Thu nhập thực tế
B7: 300 | C7: 278 | D7: Người lớn @ | E7: 5.00 ₫ | F7: =B7*E7 -> 1,500.00 ₫ | G7: =C7*E7 -> 1,390.00 ₫
B8: 197 | C8: 195 | D8: Trẻ em @ | E8: 2.00 ₫ | F8: =B8*E8 -> 394.00 ₫ | G8: =C8*E8 -> 390.00 ₫
B9: 42 | C9: 51 | D9: Khác @ | E9: 1.00 ₫ | F9: =B9*E9 -> 42.00 ₫ | G9: =C9*E9 -> 51.00 ₫
B10: Tổng | F10: =SUBTOTAL(109,Phí_vào_cửa[Thu nhập ước tính]) -> 1,936.00 ₫ | G10: =SUBTOTAL(109,Phí_vào_cửa[Thu nhập thực tế]) -> 1,831.00 ₫
A11: Nhãn Quảng cáo trong chương trình nằm trong ô bên phải. | B11: QUẢNG CÁO TRONG CHƯƠNG TRÌNH
A12: Nhập Số lượng quảng cáo ước tính và thực tế trong chương trình và Giá quảng cáo vào bảng bắt đầu từ ô bên phải. Thu nhập ước tính và thực tế từ quảng cáo được tính toán tự động. Hướng dẫn tiếp theo nằm trong ô A17. | B12: Số ước tính | C12: Số thực tế | D12: Loại | E12: Giá | F12: Thu nhập ước tính | G12: Thu nhập thực tế
B13: 12 | D13: Bìa @ | F13: =B13*E13 -> 0.00 ₫ | G13: =C13*E13 -> 0.00 ₫
C14: 158 | D14: Nửa trang @ | F14: =B14*E14 -> 0.00 ₫ | G14: =C14*E14 -> 0.00 ₫
B15: 4 | D15: Một phần tư trang @ | F15: =B15*E15 -> 0.00 ₫ | G15: =C15*E15 -> 0.00 ₫
B16: Tổng | F16: =SUBTOTAL(109,Quảng_cáo_trong_chương_trình[Thu nhập ước tính]) -> 0.00 ₫ | G16: =SUBTOTAL(109,Quảng_cáo_trong_chương_trình[Thu nhập thực tế]) -> 0.00 ₫
A17: Nhãn Người tham gia triển lãm hoặc Nhà cung cấp nằm trong ô bên phải. | B17: NGƯỜI THAM GIA TRIỂN LÃM/NHÀ CUNG CẤP
A18: Nhập Số người tham gia triển lãm và nhà cung cấp ước tính và thực tế cũng như giá gian hàng vào bảng bắt đầu từ ô bên phải. Thu nhập ước tính và thực tế được tính toán tự động. Hướng dẫn tiếp theo nằm trong ô A23. | B18: Số ước tính | C18: Số thực tế | D18: Loại | E18: Giá | F18: Thu nhập ước tính | G18: Thu nhập thực tế
B19: 23 | D19: Gian hàng lớn @ | F19: =B19*E19 -> 0.00 ₫ | G19: =C19*E19 -> 0.00 ₫
B20: 354 | D20: Gian hàng trung bình @ | F20: =B20*E20 -> 0.00 ₫ | G20: =C20*E20 -> 0.00 ₫
B21: 56 | D21: Gian hàng nhỏ @ | F21: =B21*E21 -> 0.00 ₫ | G21: =C21*E21 -> 0.00 ₫
B22: Tổng | F22: =SUBTOTAL(109,Người_tham_gia_triển_lãm_và_nhà_cung_cấp[Thu nhập ước tính]) -> 0.00 ₫ | G22: =SUBTOTAL(109,Người_tham_gia_triển_lãm_và_nhà_cung_cấp[Thu nhập thực tế]) -> 0.00 ₫
A23: Nhãn Hàng bán ra nằm trong ô bên phải. | B23: HÀNG BÁN RA
A24: Nhập Số lượng hàng bán ra ước tính và thực tế cũng như giá của hàng vào bảng bắt đầu ở ô bên phải. Thu nhập ước tính và thực tế được tính toán tự động. | B24: Số ước tính | C24: Số thực tế | D24: Loại | E24: Giá | F24: Thu nhập ước tính | G24: Thu nhập thực tế
D25: Mặt hàng @ | F25: =B25*E25 -> 0.00 ₫ | G25: =C25*E25 -> 0.00 ₫
B26: 123 | D26: Mặt hàng @ | F26: =B26*E26 -> 0.00 ₫ | G26: =C26*E26 -> 0.00 ₫
D27: Mặt hàng @ | F27: =B27*E27 -> 0.00 ₫ | G27: =C27*E27 -> 0.00 ₫
B28: 13 | D28: Mặt hàng @ | F28: =B28*E28 -> 0.00 ₫ | G28: =C28*E28 -> 0.00 ₫
B29: Tổng | F29: =SUBTOTAL(109,Hàng_bán_ra[Thu nhập ước tính]) -> 0.00 ₫ | G29: =SUBTOTAL(109,Hàng_bán_ra[Thu nhập thực tế]) -> 0.00 ₫

Sheet Tóm tắt lãi - lỗ
A1: Tóm tắt và Biểu đồ lãi & lỗ thể hiện Tổng thu nhập và Tổng chi phí được cập nhật tự động trong trang tính này. Tiêu đề của trang tính này được cập nhật tự động trong các ô bên phải. Tiêu đề phụ nằm trong ô G1 và G2. Hướng dẫn hữu ích về cách sử dụng trang tính này nằm ở các ô trong cột này. Hướng dẫn tiếp theo nằm trong ô A3. | B1: ='Chi phí'!B1 -> Ngân sách sự kiện cho | D1: ='Chi phí'!D1 -> Tên sự kiện | G1: LÃI
G2: Tóm tắt lỗ
A3: Biểu đồ thanh so sánh Thu nhập và Chi phí ước tính với Thu nhập và Chi phí thực tế nằm trong ô E3. | E3: Biểu đồ thanh so sánh Thu nhập và Chi phí ước tính với Thu nhập và Chi phí thực tế nằm trong ô này.
A4: Bảng Tóm tắt bắt đầu từ ô bên phải sẽ được cập nhật tự động. Hướng dẫn tiếp theo nằm trong ô A8. | B4: Tổng | C4: Ước tính | D4: Thực tế
B5: Tổng thu nhập | C5: ='Thu nhập'!F10 -> 1,936.00 ₫ | D5: ='Thu nhập'!F4 -> 1,936.00 ₫
B6: Tổng chi phí | C6: ='Chi phí'!G4 -> 882.00 ₫ | D6: ='Chi phí'!H4 -> 302.00 ₫
A8: Tổng lãi hoặc lỗ ước tính được tính toán tự động trong ô C8 còn Tổng lãi hoặc lỗ thực tế được tính toán tự động trong ô D8. | B8: Tổng lãi (hoặc lỗ) | C8: =C5-C6 -> 1,054.00 ₫ | D8: =D5-D6 -> 1,634.00 ₫
